fUST/lending_fUST_20250824
["ID","MTS","AMOUNT","RATE_DAILY","PERIOD"]
[381100473,1756039843485,-151.0,0.00049315,120]
[381100474,1756039843496,-151.0,0.00049315,120]
[381100475,1756039843505,-151.0,0.00049315,120]
[381100476,1756039843514,-151.0,0.00049315,120]
[381100477,1756039843524,-151.0,0.00049315,120]
[381100478,1756039843533,-151.0,0.00049315,120]
[381100479,1756039843542,-218.761718,0.00049315,120]
[381100480,1756039843551,-218.761718,0.00049315,120]
[381100481,1756039843560,-218.761718,0.00049315,120]
[381100482,1756039843570,-218.761718,0.00049315,120]
[381100483,1756039843579,-151.0,0.00049315,120]
[381100484,1756039843589,-151.0,0.00049315,120]
[381100485,1756039843598,-151.0,0.00049315,120]
[381100486,1756039843607,-176.538522,0.00049315,120]
[381100487,1756039843618,-151.0,0.00049315,120]
[381100488,1756039843627,-155.419226,0.00049315,120]
[381100489,1756039843636,-176.538522,0.00049315,120]
[381100490,1756039843646,-155.419226,0.00049315,120]
[381100491,1756039843655,-176.538522,0.00049315,120]
[381100492,1756039843665,-155.419226,0.00049315,120]
[381100493,1756039843674,-176.538522,0.00049315,120]
[381100494,1756039843684,-155.419226,0.00049315,120]
[381100495,1756039843694,-167.219753,0.00049315,120]
[381100496,1756039843703,-167.219753,0.00049315,120]
[381100497,1756039843712,-167.219753,0.00049315,120]
[381100498,1756039843721,-167.219753,0.00049315,120]
[381100499,1756039843731,-372.120807,0.00049315,120]
[381100500,1756039843740,-151.0,0.00049315,120]
[381100502,1756039843749,-372.120807,0.00049315,120]
[381100504,1756039843759,-151.0,0.00049315,120]
[381100505,1756039843768,-372.120807,0.00049315,120]
[381100506,1756039843777,-151.0,0.00049315,120]
[381100507,1756039843787,-372.120807,0.00049315,120]
[381100508,1756039843796,-151.0,0.00049315,120]
[381100509,1756039843805,-167.485033,0.00049315,120]
[381100510,1756039843815,-151.0,0.00049315,120]
[381100511,1756039843824,-151.0,0.00049315,120]
[381100512,1756039843834,-167.16291,0.00049315,30]
[381100513,1756039843843,-167.16291,0.00049315,30]
[381100514,1756039843853,-151.0,0.00049315,120]
[381100515,1756039843862,-167.16291,0.00049315,30]
[381100516,1756039843872,-167.16291,0.00049315,30]
[381100517,1756039843883,-151.0,0.00049315,120]
[381100518,1756039843892,-151.0,0.00049315,120]
[381100519,1756039843901,-151.0,0.00049315,120]
[381100520,1756039843912,-151.0,0.00049315,120]
[381100521,1756039843922,-151.0,0.00049315,120]
[381100522,1756039843931,-197.425961,0.00049315,120]
[381100523,1756039843941,-197.425961,0.00049315,120]
[381100524,1756039843950,-197.425961,0.00049315,120]
[381100525,1756039843960,-197.425961,0.00049315,120]
[381100526,1756039843969,-151.0,0.00049315,120]
[381100527,1756039843980,-151.0,0.00049315,120]
[381100528,1756039843989,-151.0,0.00049315,15]
[381100529,1756039844000,-151.0,0.00049315,15]
[381100530,1756039844009,-151.0,0.00049315,15]
[381100531,1756039844018,-151.0,0.00049315,120]
[381100532,1756039844028,-151.0,0.00049315,120]
[381100533,1756039844037,-151.0,0.00049315,120]
[381100534,1756039844047,-947.314551,0.00049315,120]
[381100535,1756039844056,-203.020871,0.00049315,120]
[381100536,1756039844066,-947.314551,0.00049315,120]
[381100537,1756039844075,-203.020871,0.00049315,120]
[381100538,1756039844084,-7968.42,0.00049315,120]
[381100539,1756039844094,-7968.42,0.00049315,120]
[381100540,1756039844104,-334.483494,0.00049315,120]
[381100541,1756039844116,-7968.42,0.00049315,120]
[381100542,1756039844123,-7968.42,0.00049315,120]
[381100543,1756039844131,-947.314551,0.00049315,120]
[381100544,1756039844139,-7968.42,0.00049315,120]
[381100545,1756039844147,-203.020871,0.00049315,120]
[381100546,1756039844155,-7968.42,0.00049315,120]
[381100547,1756039844163,-7968.42,0.00049315,120]
[381100548,1756039844173,-7968.42,0.00049315,120]
[381100549,1756039844182,-7968.42,0.00049315,120]
[381100550,1756039844193,-334.483494,0.00049315,120]
[381100551,1756039844203,-947.314551,0.00049315,120]
[381100552,1756039844213,-7968.42,0.00049315,120]
[381100553,1756039844222,-203.020871,0.00049315,120]
[381100554,1756039844232,-7968.42,0.00049315,120]
[381100555,1756039844242,-7968.42,0.00049315,120]
[381100556,1756039844251,-7968.42,0.00049315,120]
[381100557,1756039844261,-7968.42,0.00049315,120]
[381100558,1756039844271,-7968.42,0.00049315,120]
[381100559,1756039844281,-334.483494,0.00049315,120]
[381100560,1756039844290,-7968.42,0.00049315,120]
[381100561,1756039844299,-7968.42,0.00049315,120]
[381100562,1756039844309,-7968.42,0.00049315,120]
[381100563,1756039844319,-7968.42,0.00049315,120]
[381100564,1756039844328,-7968.42,0.00049315,120]
[381100565,1756039844338,-7968.42,0.00049315,120]
[381100566,1756039844347,-334.483494,0.00049315,120]
[381100567,1756039844358,-500.0,0.00049373,10]
[381100568,1756039844369,-500.0,0.00049373,10]
[381100569,1756039844378,-500.0,0.00049373,10]
[381100570,1756039844388,-202.20021287,0.00049399,60]
[381100571,1756039844397,-200.0,0.00049399,60]
[381100572,1756039844407,-279206.80632748,0.000494,120]
[381100573,1756039844426,-99542.1675808,0.000494,120]
[381100574,1756039844438,-593.78754741,0.000494,120]
[381100597,1756039847139,-182.19470616,0.00029954,2]
[381100598,1756039847149,-199.0,0.000309,120]
[381100599,1756039847159,-3112.78588836,0.00034501,2]
[381100600,1756039847169,-151.0,0.00047999,120]
[381100601,1756039847179,-212.785978,0.00047999,120]
[381100602,1756039847188,-212.785978,0.00047999,120]
[381100603,1756039847198,-212.785978,0.00047999,120]
[381100604,1756039847208,-212.785978,0.00047999,120]
[381100605,1756039847218,-7968.42,0.00049315,120]
[381100606,1756039847228,-7968.42,0.00049315,120]
[381100607,1756039847238,-151.0,0.00049315,120]
[381100608,1756039847248,-7968.45279138,0.00049315,120]
[381100609,1756039847258,-212.785978,0.00049315,120]
[381100611,1756039847268,-212.785978,0.00049315,120]
[381100612,1756039847277,-212.785978,0.00049315,120]
[381100613,1756039847287,-212.785978,0.00049315,120]
[381100614,1756039847296,-1056.87235189,0.000494,61]
[381100615,1756039847306,-414203.67770928,0.000494,120]
[381100616,1756039847316,-151.0,0.000494,29]
[381100617,1756039847326,-151.0,0.000494,22]
[381100618,1756039847336,-151.0,0.000494,14]
[381100619,1756039847346,-151.0,0.000494,120]
[381100620,1756039847355,-151.0,0.000494,120]
[381100621,1756039847366,-151.0,0.000494,120]
[381100622,1756039847376,-151.0,0.000494,120]
[381100623,1756039847386,-152.387388,0.000494,120]
[381100624,1756039847395,-151.0,0.000494,120]
[381100625,1756039847405,-151.0,0.000494,120]
[381100626,1756039847415,-151.0,0.000494,120]
[381100627,1756039847426,-151.0,0.000494,120]
[381100628,1756039847436,-151.0,0.000494,120]
[381100629,1756039847446,-151.0,0.000494,120]
[381100630,1756039847456,-151.0,0.000494,120]
[381100631,1756039847467,-151.0,0.000494,120]
[381100632,1756039847477,-151.0,0.000494,120]
[381100633,1756039847488,-151.0,0.000494,30]
[381100634,1756039847497,-151.0,0.000494,120]
[381100635,1756039847509,-151.0,0.000494,120]
[381100636,1756039847519,-151.0,0.000494,120]
[381100637,1756039847530,-151.0,0.000494,120]
[381100638,1756039847540,-151.0,0.000494,120]
[381100639,1756039847550,-151.0,0.000494,120]
[381100640,1756039847561,-151.0,0.000494,120]
[381100641,1756039847571,-151.0,0.000494,120]
[381100642,1756039847581,-256.689679,0.000494,120]
[381100643,1756039847590,-151.0,0.000494,120]
[381100644,1756039847600,-151.0,0.000494,120]
[381100645,1756039847611,-262.66069,0.000494,120]
[381100646,1756039847621,-151.0,0.000494,120]
[381100647,1756039847631,-151.0,0.000494,120]
[381100649,1756039847641,-151.0,0.000494,120]
[381100652,1756039847652,-151.0,0.000494,120]
[381100654,1756039847662,-1000.0,0.000494,120]
[381100655,1756039847671,-1000.0,0.000494,120]
[381100657,1756039847681,-1000.0,0.000494,120]
[381100659,1756039847691,-151.0,0.000494,120]
[381100661,1756039847701,-1000.0,0.000494,120]
[381100664,1756039847711,-1000.0,0.000494,120]
[381100666,1756039847721,-1000.0,0.000494,120]
[381100668,1756039847731,-1000.0,0.000494,120]
[381100670,1756039847741,-1000.0,0.000494,120]
[381100672,1756039847750,-1000.0,0.000494,120]
[381100673,1756039847760,-1000.0,0.000494,120]
[381100675,1756039847770,-1000.0,0.000494,120]
[381100677,1756039847779,-1000.0,0.000494,120]
[381100680,1756039847789,-1000.0,0.000494,120]
[381100682,1756039847799,-1000.0,0.000494,120]
[381100684,1756039847810,-1000.0,0.000494,120]
[381100686,1756039847820,-1000.0,0.000494,120]
[381100688,1756039847830,-1000.0,0.000494,120]
[381100690,1756039847840,-1000.0,0.000494,120]
[381100692,1756039847850,-1000.0,0.000494,120]
[381100694,1756039847860,-1000.0,0.000494,120]
[381100696,1756039847871,-1000.0,0.000494,120]
[381100698,1756039847881,-1000.0,0.000494,120]
[381100700,1756039847891,-1000.0,0.000494,120]
[381100701,1756039847901,-1000.0,0.000494,120]
[381100702,1756039847911,-1000.0,0.000494,120]
[381100703,1756039847921,-1000.0,0.000494,120]
[381100704,1756039847931,-1000.0,0.000494,120]
[381100705,1756039847941,-151.0,0.000494,120]
[381100706,1756039847951,-1000.0,0.000494,120]
[381100707,1756039847960,-1000.0,0.000494,120]
[381100708,1756039847971,-1000.0,0.000494,120]
[381100709,1756039847981,-1000.0,0.000494,120]
[381100710,1756039847991,-1000.0,0.000494,120]
[381100711,1756039848002,-285.698482,0.000494,120]
[381100712,1756039848012,-151.0,0.000494,120]
[381100713,1756039848024,-1000.0,0.000494,120]
[381100714,1756039848035,-1000.0,0.000494,120]
[381100715,1756039848045,-1000.0,0.000494,120]
[381100716,1756039848055,-1000.0,0.000494,120]
[381100717,1756039848065,-1000.0,0.000494,120]
[381100718,1756039848075,-1000.0,0.000494,120]
[381100719,1756039848086,-1000.0,0.000494,120]
[381100720,1756039848096,-1000.0,0.000494,120]
[381100721,1756039848107,-1000.0,0.000494,120]
[381100722,1756039848121,-1000.0,0.000494,120]
[381100723,1756039848131,-1000.0,0.000494,120]
[381100724,1756039848141,-1000.0,0.000494,120]
[381100725,1756039848152,-1000.0,0.000494,120]
[381100726,1756039848164,-151.0,0.000494,120]
[381100727,1756039848175,-1000.0,0.000494,120]
[381100728,1756039848186,-1000.0,0.000494,120]
[381100729,1756039848197,-1000.0,0.000494,120]
[381100730,1756039848209,-1000.0,0.000494,120]
[381100731,1756039848220,-269.215646,0.000494,120]
[381100732,1756039848231,-218.761718,0.000494,120]
[381100733,1756039848242,-218.761718,0.000494,120]
[381100734,1756039848252,-218.761718,0.000494,120]
[381100735,1756039848264,-218.761718,0.000494,120]
[381100736,1756039848274,-151.0,0.000494,120]
[381100737,1756039848284,-151.0,0.000494,120]
[381100738,1756039848294,-151.0,0.000494,120]
[381100739,1756039848306,-176.538522,0.000494,120]
[381100740,1756039848317,-151.0,0.000494,120]
[381100741,1756039848327,-155.419226,0.000494,120]
[381100742,1756039848337,-176.538522,0.000494,120]
[381100743,1756039848347,-155.419226,0.000494,120]
[381100744,1756039848357,-176.538522,0.000494,120]
[381100745,1756039848368,-155.419226,0.000494,120]
[381100746,1756039848378,-176.538522,0.000494,120]
[381100747,1756039848387,-155.419226,0.000494,120]
[381100749,1756039848398,-167.219753,0.000494,120]
[381100751,1756039848408,-167.219753,0.000494,120]
[381100752,1756039848418,-167.219753,0.000494,120]
[381100753,1756039848428,-167.219753,0.000494,120]
[381100754,1756039848438,-372.120807,0.000494,120]
[381100755,1756039848448,-151.0,0.000494,120]
[381100756,1756039848459,-372.120807,0.000494,120]
[381100758,1756039848469,-151.0,0.000494,120]
[381100759,1756039848479,-372.120807,0.000494,120]
[381100760,1756039848490,-151.0,0.000494,120]
[381100761,1756039848501,-372.120807,0.000494,120]
[381100762,1756039848512,-282.788378,0.000494,120]
[381100763,1756039848521,-151.0,0.000494,120]
[381100764,1756039848531,-301.465158,0.000494,120]
[381100765,1756039848541,-167.16291,0.000494,30]
[381100766,1756039848551,-167.16291,0.000494,30]
[381100767,1756039848561,-151.0,0.000494,120]
[381100768,1756039848571,-167.16291,0.000494,30]
[381100769,1756039848581,-167.16291,0.000494,30]
[381100770,1756039848590,-151.0,0.000494,120]
[381100771,1756039848600,-151.0,0.000494,120]
[381100772,1756039848610,-197.425961,0.000494,120]
[381100773,1756039848619,-197.425961,0.000494,120]
[381100774,1756039848629,-197.425961,0.000494,120]
[381100775,1756039848639,-197.425961,0.000494,120]
[381100776,1756039848648,-151.0,0.000494,120]
[381100777,1756039848659,-151.0,0.000494,120]
[381100778,1756039848668,-151.0,0.000494,15]
[381100779,1756039848678,-151.0,0.000494,15]
[381100780,1756039848687,-151.0,0.000494,15]
[381100781,1756039848696,-151.0,0.000494,120]
[381100782,1756039848706,-151.0,0.000494,120]
[381100783,1756039848716,-947.314551,0.000494,120]
[381100784,1756039848726,-203.020871,0.000494,120]
[381100785,1756039848735,-947.314551,0.000494,120]
[381100786,1756039848745,-203.020871,0.000494,120]
[381100787,1756039848755,-334.483494,0.000494,120]
[381100788,1756039848764,-947.314551,0.000494,120]
[381100789,1756039848774,-203.020871,0.000494,120]
[381100794,1756039848962,-334.483494,0.000494,120]
[381100795,1756039848974,-947.314551,0.000494,120]
[381100796,1756039848983,-203.020871,0.000494,120]
[381100797,1756039848993,-334.483494,0.000494,120]
[381100798,1756039849002,-334.483494,0.000494,120]
[381100799,1756039849011,-212.785978,0.000494,120]
[381100800,1756039849020,-212.785978,0.000494,120]
[381100801,1756039849030,-212.785978,0.000494,120]
[381100802,1756039849040,-212.785978,0.000494,120]
[381100803,1756039849050,-159.604134,0.00049419,15]
[381100804,1756039849059,-10000.0,0.000495,120]
[381100805,1756039849068,-500.0,0.00049588,60]
[381100806,1756039849078,-9513.4,0.000496,14]
[381100807,1756039849087,-168.0,0.00049696,2]
[381100808,1756039849097,-1614.06,0.00049808,120]
[381100809,1756039849106,-168.0,0.00049813,2]
[381100810,1756039849120,-167.11243922,0.00049879,120]
[381100811,1756039849129,-973.0,0.00049901,2]
[381100812,1756039849139,-1283.551,0.00049901,2]
[381100813,1756039849148,-1003.2892988,0.00049921,10]
[381100814,1756039849157,-335.56434949,0.00049921,10]
[381100815,1756039849167,-1000.0,0.00049999,120]
[381100816,1756039849176,-1998.51485003,0.0005,120]
[381100817,1756039849186,-219.43535274,0.0005,20]
[381100818,1756039849196,-200.0,0.0005,120]
[381100819,1756039849206,-3899.36179346,0.0005,30]
[381100820,1756039849216,-500.0,0.00050136,60]
[381100821,1756039849225,-10000.0,0.000502,120]
[381100822,1756039849234,-1906.12845289,0.000502,120]
[381100823,1756039849249,-8093.87154711,0.000502,120]
[381100824,1756039849258,-600.0,0.00050384,60]
[381100825,1756039849267,-1000.0,0.00050391,2]
[381100826,1756039849277,-155.0,0.000504,120]
[381100827,1756039849287,-167.11243922,0.00050459,120]
[381100828,1756039849297,-12950.22573699,0.000505,120]
[381100829,1756039849307,-600.0,0.00050521,60]
[381100830,1756039849316,-500.0,0.00050684,60]
[381100831,1756039849326,-960.0,0.00050684,120]
[381100832,1756039849335,-480.0,0.00050684,120]
[381100833,1756039849344,-600.0,0.00050885,60]
[381100834,1756039849353,-776.33406293,0.00050978,58]
[381100835,1756039849363,-1000.0,0.00050999,120]
[381100836,1756039849372,-976.0,0.00051,120]
[381100837,1756039849381,-164.0,0.00051,120]
[381100838,1756039849390,-193.0,0.00051,120]
[381100839,1756039849400,-167.11243922,0.00051038,120]
[381100840,1756039849409,-500.0,0.00051063,60]
[381100841,1756039849419,-9513.4,0.000511,14]
[381100842,1756039849428,-600.0,0.00051156,60]
[381100843,1756039849437,-1614.06,0.00051178,120]
[381100844,1756039849447,-500.0,0.00051232,60]
[381100845,1756039849456,-161.0055628,0.00051233,30]
[381100846,1756039849466,-161.0055628,0.00051233,30]
[381100847,1756039849475,-161.0055628,0.00051233,30]
[381100848,1756039849484,-161.0055628,0.00051233,30]
[381100849,1756039849494,-150.0,0.000513,10]
[381100850,1756039849503,-600.0,0.00051337,60]
[381100851,1756039849513,-386.9439334,0.0005137,30]
[381100852,1756039849523,-600.0,0.0005139,60]
[381100853,1756039849532,-500.0,0.000514,21]
[381100854,1756039849542,-500.0,0.000514,21]
[381100855,1756039849551,-5167.44704235,0.0005149,120]
[381100856,1756039849560,-13610.25916365,0.000515,120]
[381100857,1756039849569,-600.0,0.00051522,60]
[381100858,1756039849578,-160.0,0.00051526,2]
[381100859,1756039849588,-376.22310801,0.00051581,2]
[381100860,1756039849597,-217.07852671,0.00051581,2]
[381100861,1756039849607,-160.0,0.00051581,2]
[381100862,1756039849616,-232.42214577,0.00051594,2]
[381100863,1756039849626,-167.11243922,0.00051617,120]
[381100864,1756039849635,-933.46863422,0.00051618,60]
[381100865,1756039849644,-201.57941792,0.00051733,60]
[381100866,1756039849654,-151.0,0.00051734,120]
[381100867,1756039849664,-151.0,0.00051734,120]
[381100868,1756039849673,-151.0,0.00051734,120]
[381100869,1756039849682,-151.0,0.00051734,120]
[381100870,1756039849691,-151.0,0.00051734,120]
[381100871,1756039849700,-151.0,0.00051734,120]
[381100872,1756039849709,-151.0,0.00051734,120]
[381100873,1756039849720,-151.0,0.00051734,120]
[381100874,1756039849729,-151.0,0.00051734,120]
[381100875,1756039849739,-151.0,0.00051734,120]
[381100876,1756039849747,-151.0,0.00051734,120]
[381100877,1756039849757,-157.747276,0.00051734,120]
[381100878,1756039849767,-151.0,0.00051734,30]
[381100879,1756039849776,-500.0,0.0005178,60]
[381100880,1756039849785,-593.3138611,0.00051781,30]
[381100881,1756039849795,-595.7888723,0.00051781,30]
[381100882,1756039849805,-1162.1473789,0.00051781,30]
[381100883,1756039849815,-164.1197885,0.00051781,30]
[381100884,1756039849825,-429.4456144,0.00051781,30]
[381100885,1756039849834,-293.77,0.000518,7]
[381100886,1756039849843,-159.604134,0.000518,15]
[381100887,1756039849852,-250.0,0.00051848,10]
[381100888,1756039849861,-159.604134,0.00051849,7]
[381100889,1756039849871,-199.0,0.00051954,120]
[381100890,1756039849880,-199.0,0.00051954,30]
[381100891,1756039849890,-501.06389529,0.00051972,60]
[381100892,1756039849900,-1000.0,0.00051999,120]
[381100893,1756039849909,-1313.58003172,0.00052,54]
[381100895,1756039886228,150.45,0.00027397,120]
[381100896,1756039970319,324.70426444,0.000199,2]
[381100897,1756039970632,324.70426416,0.00023353,2]
[381100898,1756039971117,324.70426416,0.00026806,6]
[381100899,1756039971188,324.70426416,0.0002508,2]
[381100900,1756039971227,324.70426416,0.00021627,2]
[381100901,1756040136682,543.83331083,0.000199,2]
[381100902,1756040136789,543.83331062,0.00023353,2]
[381100903,1756040137287,543.83331062,0.0002508,2]
[381100904,1756040137665,543.83331062,0.00021627,2]
[381100905,1756040182391,160.0,0.00013699,2]
[381100906,1756040182740,260.0,0.00014247,2]
[381100907,1756040183078,360.0,0.00014795,2]
[381100908,1756040183403,460.0,0.00015342,2]
[381100909,1756040183719,560.0,0.0001589,2]
[381100910,1756040184051,660.0,0.00016438,2]
[381100911,1756040184362,760.0,0.00016986,2]
[381100912,1756040184687,860.0,0.00017534,2]
[381100913,1756040185008,960.0,0.00018082,2]
[381100914,1756040185321,1060.0,0.0001863,2]
[381100915,1756040185630,1160.0,0.00019178,2]
[381100916,1756040185943,1260.0,0.00019726,2]
[381100917,1756040186271,1360.0,0.00020274,2]
[381100918,1756040186577,1460.0,0.00020822,2]
[381100919,1756040186889,1560.0,0.0002137,2]
[381100920,1756040187216,1603.2161808,0.00021918,2]
[381100921,1756040303313,516.71643577,0.000199,2]
[381100922,1756040304019,516.71643554,0.00026806,6]
[381100923,1756040304058,516.71643554,0.00023353,2]
[381100924,1756040304170,516.71643554,0.00021627,2]
[381100925,1756040388449,3097.53635974,0.000259,2]
[381100926,1756040475067,504.75329874,0.000199,2]
[381100927,1756040475949,504.75329845,0.00023353,2]
[381100928,1756040488912,180.05147322,0.000275,3]
[381100929,1756040639194,4819.94852678,0.000275,3]
[381100930,1756040641784,514.32323532,0.000199,2]
[381100931,1756040641887,514.32323511,0.00021627,2]
[381100932,1756040642106,514.32323511,0.00026806,6]
[381100933,1756040642672,514.32323511,0.00023353,2]
[381100934,1756040642775,514.32323511,0.0002508,2]
[381100935,1756040808351,470.38207059,0.000199,2]
[381100936,1756040808390,470.38207048,0.00021627,2]
[381100937,1756040808800,470.38207048,0.00023353,2]
[381100938,1756040808901,470.38207048,0.0002508,2]
[381100939,1756040809263,470.38207048,0.00026806,6]
[381100941,1756040955224,-470.38207048,0.00028533,10]
[381100942,1756040955245,-500.0,0.0002872,2]
[381100943,1756040955269,-470.38207048,0.00030259,13]
[381100944,1756040955289,-199.0,0.000305,120]
[381100945,1756040955310,-199.0,0.000306,120]
[381100946,1756040955332,-199.0,0.000307,120]
[381100947,1756040955352,-199.0,0.000308,120]
[381100948,1756040955372,-480.0,0.00031302,15]
[381100949,1756040955396,-470.38207048,0.00031986,17]
[381100950,1756040955416,-250.0,0.00032543,2]
[381100951,1756040955435,-196.41779935,0.00033712,2]
[381100952,1756040958631,199.0,0.00028433,10]
[381100953,1756040961892,199.0,0.000304,120]
[381100954,1756040979886,382.94710193,0.000199,2]
[381100955,1756040980012,382.94710165,0.00030259,13]
[381100956,1756040980038,382.94710165,0.0002508,2]
[381100957,1756040980114,382.94710165,0.00021627,2]
[381100958,1756040980306,382.94710165,0.00026806,6]
[381100959,1756040980450,382.94710165,0.00023353,2]
[381100960,1756040980769,382.94710165,0.00028533,10]
[381100961,1756041012896,3908.79329617,0.00030202,30]
[381100998,1756041031848,-382.94710165,0.00031986,17]
[381100999,1756041031858,-92.43169835,0.00033712,2]
[381101001,1756041031870,-1495.65684411,0.00033712,2]
[381101002,1756041031880,-382.94710165,0.00033712,21]
[381101004,1756041031889,-400.0,0.00034226,2]
[381101006,1756041031899,-300.0,0.00034226,3]
[381101008,1756041031908,-172.0,0.00034226,3]
[381101010,1756041031918,-1048.6525961,0.00034226,3]
[381101013,1756041031934,-551.3474039,0.00034226,3]
[381101015,1756041031943,-174.22033025,0.00034227,3]
[381101017,1756041031955,-1425.77966975,0.00034227,3]
[381101019,1756041031964,-200.84107064,0.00035,2]
[381101021,1756041031974,-12698.53451425,0.00035034,2]
[381101023,1756041031983,-160.0,0.00035083,2]
[381101025,1756041031992,-232.42214577,0.00035086,2]
[381101027,1756041032002,-250.0,0.00035287,2]
[381101029,1756041032012,-382.94710165,0.00035439,24]
[381101032,1756041032021,-178.9548242,0.00035616,2]
[381101034,1756041032031,-560.0,0.00036727,2]
[381101036,1756041032040,-468.0,0.00036728,3]
[381101039,1756041032051,-2240.0,0.00036874,3]
[381101040,1756041032060,-382.94710165,0.00037166,28]
[381101043,1756041032070,-196.946,0.00037358,48]
[381101044,1756041032080,-160.0,0.00037629,2]
[381101046,1756041032091,-215.99145658,0.00037648,2]
[381101048,1756041032100,-844.67759735,0.00037648,2]
[381101050,1756041032109,-217.07852671,0.00037653,2]
[381101052,1756041032119,-99.55427656,0.00037653,2]
[381101055,1756041032131,-60.44572344,0.00037653,2]
[381101057,1756041032140,-160.0,0.00037657,2]
[381101059,1756041032149,-160.0,0.00037661,2]
[381101061,1756041032159,-160.0,0.00037661,2]
[381101063,1756041032168,-382.94710165,0.00038892,32]
[381101065,1756041032179,-199.0,0.00039137,30]
[381101067,1756041032188,-783.0,0.00039411,5]
[381101068,1756041032198,-1000.0,0.00039726,15]
[381101070,1756041032207,-2130.0,0.00039728,5]
[381101073,1756041032216,-1000.0,0.00040059,2]
[381101075,1756041032226,-1000.0,0.00040059,2]
[381101077,1756041032235,-1000.0,0.00040059,2]
[381101078,1756041032244,-1000.0,0.00040059,2]
[381101081,1756041032253,-1000.0,0.00040059,2]
[381101083,1756041032263,-285.0,0.00040059,2]
[381101085,1756041032272,-150.0,0.00040187,2]
[381101087,1756041032281,-150.0,0.00040197,2]
[381101088,1756041032290,-153.0,0.00040308,30]
[381101091,1756041032300,-150.0,0.00040312,2]
[381101092,1756041032310,-150.0,0.00040322,2]
[381101094,1756041032319,-150.0,0.00040436,2]
[381101096,1756041032328,-150.0,0.00040446,2]
[381101098,1756041032337,-179.71246363,0.00040515,23]
[381101100,1756041032347,-150.0,0.0004056,2]
[381101102,1756041032356,-150.0,0.0004057,2]
[381101104,1756041032365,-382.94710165,0.00040619,36]
[381101106,1756041032374,-221.98318689,0.00040685,2]
[381101109,1756041032384,-201.2274679,0.00040695,2]
[381101110,1756041032393,-500.0,0.00041073,30]
[381101113,1756041032402,-500.0,0.00041092,31]
[381101115,1756041032412,-571.79295581,0.00041092,7]
[381101116,1756041032421,-237.85986849,0.00041092,31]
[381101118,1756041032432,-500.0,0.00041092,31]
[381101121,1756041032442,-500.0,0.00041092,7]
[381101122,1756041032451,-500.0,0.00041092,2]
[381101124,1756041032460,-500.0,0.00041092,7]
[381101126,1756041032470,-500.0,0.00041092,31]
[381101128,1756041032479,-500.0,0.00041092,2]
[381101130,1756041032489,-500.0,0.00041092,7]
[381101133,1756041032503,-500.0,0.00041092,31]
[381101135,1756041032512,-447.15127761,0.00041092,2]
[381101136,1756041032522,-500.0,0.00041092,31]
[381101138,1756041032531,-500.0,0.00041092,7]
[381101140,1756041032542,-500.0,0.00041092,2]